Cogmind - Beta 13 @@@ ROGUE MODE // 2024.06.15 @ 15:50:46 Player: Gabe+Kate4EVR Result: Destroyed by B-75 Beast with Magnetic Acceleration Cannon Performance ------------- Evolutions (1) 500 Regions Visited (5) 1000 Robots Destroyed (34) 170 Value Destroyed (782) 782 Prototype IDs (0) 0 Alien Tech Used (0) 0 Bonus (173) 173 TOTAL SCORE: 2625 Bonus ------- High Alert Combat Kills 116 Follower Combat Kills 73 Entered Garrisons 200 Friendly Fire -216 Cogmind --------- Core Integrity 0/400 Matter 169/300 Energy 84/100 System Corruption 2% Temperature Cool (0) Movement Core (50) Location -9/Garrison Parts ------- > --- POWER (1) -------- (None) > --- PROPULSION (4) --- (None) > --- UTILITY (2) ------ (None) > --- WEAPON (2) ------- Katana > --- INVENTORY (5) ---- Aluminum Leg High-capacity Battery (250) Long-range Tractor Beam Long-range Tractor Beam Welding Torch Peak State ------------ > --- POWER ------------ Improved Ion Engine > --- PROPULSION ------- Aluminum Leg Aluminum Leg Aluminum Leg Improved Aluminum Leg > --- UTILITY ---------- Large Storage Unit Improved Terrain Scanner > --- WEAPON ----------- Shotgun Rocket Launcher > --- INVENTORY -------- Light Ion Engine Improved Ion Engine High-capacity Battery Experimental Sensor Array Improved Terrain Scanner Long-range Tractor Beam Long-range Tractor Beam Long-range Tractor Beam Rocket Launcher Welding Torch Katana [Rating: 18] Favorites ----------- Power Light Ion Engine Engine Light Ion Engine Propulsion Wheel Leg Aluminum Leg Wheel Wheel Utility Large Storage Unit Device Improved Terrain Scanner Storage Large Storage Unit Weapon Medium Laser Energy Gun Medium Laser Ballistic Gun Shotgun Launcher Rocket Launcher Special Weapon Mining Laser Slashing Weapon Katana Build | -11 -10 -10 -9 -9 -9 ------- Run | Yrd Mat Min Mat Sto Gar Slots Evolved 2 | . . . 2 . . Power . | . . . . . . Propulsion 2 | . . . 2 . . Utility . | . . . . . . Weapon . | . . . . . . Parts Attached 37 | 6 4 4 4 5 14 Power 6 | 1 . . 1 1 3 Engine 6 | 1 . . 1 1 3 Core . | . . . . . . Reactor . | . . . . . . Propulsion 12 | 2 2 2 1 . 5 Treads . | . . . . . . Leg 8 | 2 . . 1 . 5 Wheel 4 | . 2 2 . . . Hover . | . . . . . . Flight . | . . . . . . Utility 5 | 1 2 . 1 1 . Device 3 | . 1 . 1 1 . Storage 2 | 1 1 . . . . Processor . | . . . . . . Hackware . | . . . . . . Protection . | . . . . . . Artifact . | . . . . . . Weapon 14 | 2 . 2 1 3 6 Energy Gun 5 | 2 . 2 . 1 . Energy Cannon . | . . . . . . Ballistic Gun 1 | . . . . . 1 Ballistic Cannon . | . . . . . . Launcher 5 | . . . . 2 3 Special Weapon 2 | . . . 1 . 1 Impact Weapon . | . . . . . . Slashing Weapon 1 | . . . . . 1 Piercing Weapon . | . . . . . . Special Melee Weapon . | . . . . . . Unidentified Prototypes . | . . . . . . Parts Lost 23 | . . 7 . 2 14 Power 3 | . . 1 . . 2 Propulsion 9 | . . 2 . 1 6 Utility 2 | . . 1 . . 1 Weapon 9 | . . 3 . 1 5 Highest Loss Streak 9 | . . 6 . 1 9 To Critical Strikes . | . . . . . . Average Slot Usage (%) 77 | . 99 75 82 71 73 Engine 6 | . 14 6 11 5 5 Leg 10 | . 11 . 11 11 29 Wheel 15 | . 16 22 22 12 2 Device 8 | . 13 6 5 11 8 Storage 12 | . 14 14 11 11 11 Energy Gun 16 | . 28 25 11 8 . Ballistic Gun 1 | . . . . . 6 Launcher 4 | . . . . 10 8 Naked Turns 1 | . . . . . 1 Heaviest Build 35 | 12 28 28 26 32 35 Greatest Support 43 | 20 20 20 20 20 43 Greatest Overweight (x) 7 | 1 1 7 1 3 6 Average Overweight (x) 1 | . . 1 1 2 . Largest Inventory Capacity 15 | 8 15 15 15 15 15 Average Capacity 14 | 6 13 15 15 15 14 Most Carried 15 | 2 8 9 8 15 15 Average Carried 9 | . 6 7 5 13 13 Final Capacity 15 | 8 15 15 15 15 5 Final Carried 15 | 2 8 7 8 15 5 Class Distribution -------------------- 93% | Mutant 6% | Scavenger-Mutant Dominant Class ---------------- Mutant | -10/Materials Mutant | -10/Mines Mutant | -9/Materials Mutant | -9/Storage Mutant | -9/Garrison Resources | -11 -10 -10 -9 -9 -9 ----------- Run | Yrd Mat Min Mat Sto Gar Matter Collected 708 | 82 152 106 . 179 189 Remotely . | . . . . . . Salvage Created 853 | . 80 93 . 390 290 Parts 65 | . 10 3 . 31 21 Haulers Intercepted 1 | . . . . 1 . Recyclers Shooed 1 | . . . . 1 . Parts Field Recycled . | . . . . . . Retrieved Matter . | . . . . . . Parts Self-Destructed . | . . . . . . Prevented . | . . . . . . Kills | -11 -10 -10 -9 -9 -9 ------- Run | Yrd Mat Min Mat Sto Gar Combat Hostiles Destroyed 30 | . . 7 . 12 11 Guns 10 | . . 7 . 3 . Cannons 2 | . . . . 1 1 AOE 18 | . . . . 8 10 Classes Destroyed 12 | . 3 3 . 4 2 Worker 1 | . 1 . . . . Builder 1 | . 1 . . . . Tunneler 1 | . 1 . . . . Hauler 1 | . . . . 1 . Recycler 2 | . . . . 2 . Watcher 1 | . . . . 1 . Swarmer 12 | . . 3 . 9 . Grunt 9 | . . . . . 9 Duelist 1 | . . . . . 1 Sentry 4 | . . . . 3 1 Demolisher 1 | . . 1 . . . Assembled 3 | . . 3 . . . Best Kill Streak 9 | . 2 4 . 9 5 Combat Bots Only 6 | . . 4 . 6 5 Max Kills in Single Turn 4 | . 1 1 . 4 2 Gunslinging . | . . . . . . Exploded 3 | . . . . 3 2 Melee . | . . . . . . Uniques/NPCs Destroyed . | . . . . . . Combat | -11 -10 -10 -9 -9 -9 -------- Run | Yrd Mat Min Mat Sto Gar Hostile Shots Fired 203 | . 13 35 . 41 114 Missed 60 | . 5 9 . 11 35 Damage Taken 2388 | . 60 623 . 433 1272 Core 647 | . . 223 . 81 343 Absorbed by Shields 14 | . . . . . 14 Core Remaining (%) 55 | 100 . 10 . . . Volleys Fired 63 | . 9 16 . 21 17 Largest 2 | . 2 2 . 2 2 Hottest 140 | . 100 100 . 140 123 Shots Fired 113 | . 18 29 . 39 27 Gun 84 | . 18 29 . 23 14 Cannon . | . . . . . . Launcher 26 | . . . . 14 12 Special 3 | . . . . 2 1 Kinetic 14 | . . . . . 14 Thermal 63 | . 18 29 . 15 1 Explosive 26 | . . . . 14 12 Electromagnetic 10 | . . . . 10 . Robot Hit Streak 10 | . 6 10 . 8 6 Robot Miss Streak 4 | . 3 2 . 4 3 Penetration Max . | . . . . . . Secondary Targets . | . . . . . . Shots Hit Robots 66 | . 10 19 . 20 17 Core Hits 50 | . 4 11 . 19 16 Critical Kills . | . . . . . . Critical Parts Destroyed . | . . . . . . Critical Strikes 1 | . . 1 . . . Burn 1 | . . 1 . . . Melee Attacks 2 | . . . . . 2 Impact . | . . . . . . Slashing 2 | . . . . . 2 Piercing . | . . . . . . Sneak Attacks . | . . . . . . Combat Hostiles . | . . . . . . Follow-up Attacks . | . . . . . . Damage Inflicted 2306 | . 126 233 . 1023 924 Guns 686 | . 126 233 . 195 132 Cannons . | . . . . . . Explosions 1515 | . . . . 804 711 Melee 57 | . . . . . 57 Ramming . | . . . . . . Kinetic 132 | . . . . . 132 Thermal 538 | . 126 233 . 155 24 Explosive 1470 | . . . . 759 711 Electromagnetic 109 | . . . . 109 . Impact . | . . . . . . Slashing 57 | . . . . . 57 Piercing . | . . . . . . Highest Corruption 2 | . . . . 2 2 Average Corruption 1 | . . . . 1 2 Corruption Purged . | . . . . . . Corruption Blocked . | . . . . . . Effects 9 | . . . . 5 4 Message Errors 2 | . . . . 1 1 Matter Fused 1 | . . . . 1 . Energy Discharges 2 | . . . . 1 1 Parts Rejected 1 | . . . . . 1 Parts Fused 1 | . . . . 1 . Data Loss (minor) 1 | . . . . . 1 Data Loss (major) 1 | . . . . 1 . Overload Shots . | . . . . . . Overflow Damage 42 | . . . . 41 1 Projectiles . | . . . . . . Explosions 42 | . . . . 41 1 Melee . | . . . . . . Knockbacks . | . . . . . . Impact . | . . . . . . Kinetic . | . . . . . . Secondary . | . . . . . . Self-Inflicted Damage 231 | . . . . 138 93 Shots 9 | . . . . 4 5 Rammed . | . . . . . . Targets Rammed . | . . . . . . Kicked . | . . . . . . Crushed . | . . . . . . Highest Temperature 387 | . 117 387 . 84 11 Average Temperature 88 | . 44 169 . 33 4 Received Heat Transfer 539 | . 6 116 . 36 381 Siege Activations . | . . . . . . Robots Corrupted . | . . . . . . Combat Hostiles . | . . . . . . Parts Fried . | . . . . . . Impact Corruptions . | . . . . . . Robots Melted . | . . . . . . Combat Hostiles . | . . . . . . Parts Melted 2 | . . 1 . 1 . Heat Transferred 1485 | . 370 765 . 300 50 Parts Sabotaged . | . . . . . . Parts Stolen . | . . . . . . Parts Stripped . | . . . . . . Power Chain Reactions 1 | . . . . 1 . Alert | -11 -10 -10 -9 -9 -9 ------- Run | Yrd Mat Min Mat Sto Gar Peak Influence 728 | . 15 105 13 606 728 Initial 393 | . . 5 13 5 393 Average 183 | . 11 42 13 254 560 Maximum Alert Level 3 | . . . . 2 3 Low Security (%) 71 | 100 100 100 100 59 . Level 1 5 | . . . . 15 10 Level 2 19 | . . . . 24 75 Level 3 2 | . . . . . 13 Level 4 . | . . . . . . Level 5 . | . . . . . . High Security . | . . . . . . Max Security . | . . . . . . Squads Dispatched 5 | . 2 . . 3 . Investigation 1 | . 1 . . . . Extermination . | . . . . . . Reinforcement 1 | . 1 . . . . Assault . | . . . . . . Garrison 3 | . . . . 3 . Intercept . | . . . . . . Searches Triggered . | . . . . . . Construction Impeded . | . . . . . . Haulers Reinforced . | . . . . . . Active Scanning Responses . | . . . . . . Cargo Convoy Interrupts . | . . . . . . Stealth | -11 -10 -10 -9 -9 -9 --------- Run | Yrd Mat Min Mat Sto Gar Distress Signals 1 | . . . . 1 . Communications Jammed . | . . . . . . Distress Signals . | . . . . . . Times Spotted 63 | . 8 28 . 15 12 Peak Tracking Total 8 | . 7 8 . 6 5 Tactical Retreats 4 | . . 3 . 1 . Traps | -11 -10 -10 -9 -9 -9 ------- Run | Yrd Mat Min Mat Sto Gar Traps Triggered 4 | . 1 . . 2 1 Indirectly . | . . . . . . Trap Hack Attempts . | . . . . . . Triggered . | . . . . . . Disarmed . | . . . . . . Reprogrammed . | . . . . . . Reused . | . . . . . . Traps Extracted . | . . . . . . Installed . | . . . . . . Triggered . | . . . . . . Machines | -11 -10 -10 -9 -9 -9 ---------- Run | Yrd Mat Min Mat Sto Gar Machines Disabled 2 | . . . . 2 . Max in Single Turn 1 | . . . . 1 . Machines Repaired . | . . . . . . Machines Dismantled . | . . . . . . Machines Sabotaged . | . . . . . . Overloaded Fab Kills . | . . . . . . Hacking | -11 -10 -10 -9 -9 -9 --------- Run | Yrd Mat Min Mat Sto Gar Machines Accessed 7 | . 2 . . 4 1 Terminals 6 | . 2 . . 3 1 Fabricators . | . . . . . . Repair Stations . | . . . . . . Recycling Units . | . . . . . . Scanalyzers . | . . . . . . Garrison Access 1 | . . . . 1 . Total Hacks 15 | . 4 . . 8 3 Successful 7 | . 2 . . 5 . Failed 8 | . 2 . . 3 3 Catastrophic 2 | . 2 . . . . Database Lockouts . | . . . . . . Manual 6 | . 4 . . 2 . Terminals 13 | . 4 . . 6 3 Fabricators . | . . . . . . Repair Stations . | . . . . . . Recycling Units . | . . . . . . Scanalyzers . | . . . . . . Garrison Access 2 | . . . . 2 . Terminal Hacks 6 | . 2 . . 4 . Emergency Access Points 1 | . . . . 1 . Alert Level 1 | . . . . 1 . Recall Investigation 1 | . 1 . . . . Recall Reinforcements 1 | . 1 . . . . Zone Layout 2 | . . . . 2 . Fabricator Hacks . | . . . . . . Repair Station Hacks . | . . . . . . Recycling Unit Hacks . | . . . . . . Scanalyzer . | . . . . . . Garrison Access Hacks 1 | . . . . 1 . Unlock Access 1 | . . . . 1 . Unauthorized Hacks . | . . . . . . Terminals . | . . . . . . Fabricators . | . . . . . . Repair Stations . | . . . . . . Recycling Units . | . . . . . . Scanalyzers . | . . . . . . Garrison Access . | . . . . . . Data Cores Recovered . | . . . . . . Used . | . . . . . . Hacking Detections 4 | . 1 . . 2 1 Full Trace Events 2 | . 1 . . . 1 Feedback Events . | . . . . . . Feedback Blocked . | . . . . . . Robot Schematics Acquired . | . . . . . . Robots Built . | . . . . . . Authchips . | . . . . . . Time . | . . . . . . Total Robot Build Rating . | . . . . . . Part Schematics Acquired . | . . . . . . Parts Built . | . . . . . . Authchips . | . . . . . . Time . | . . . . . . Total Part Build Rating . | . . . . . . Parts Repaired . | . . . . . . Time . | . . . . . . Parts Recycled . | . . . . . . Recycled Matter . | . . . . . . Retrieved Matter . | . . . . . . Retrieved Components . | . . . . . . Parts Scanalyzed . | . . . . . . Part Schematics Acquired . | . . . . . . Parts Damaged . | . . . . . . Bothacking | -11 -10 -10 -9 -9 -9 ------------ Run | Yrd Mat Min Mat Sto Gar Used RIF Installer . | . . . . . . Robots Hacked . | . . . . . . Non-combat . | . . . . . . Combat . | . . . . . . Robot Hacks Applied . | . . . . . . Relay Couplers Released . | . . . . . . Fabnet Peak Effective % . | . . . . . . Robots Rewired . | . . . . . . Allies Hacked . | . . . . . . Hacks Repelled . | . . . . . . Allies | -11 -10 -10 -9 -9 -9 -------- Run | Yrd Mat Min Mat Sto Gar Total Allies 1 | . . . . 1 . Largest Group 1 | . . . . 1 1 Highest-Rated Group 100 | . . . . 100 100 Highest-Rated Ally 100 | . . . . 100 100 Total Orders . | . . . . . . Ally Attacks 5 | . . . . 5 . Total Damage 95 | . . . . 95 . Kills 3 | . . . . 3 . Allies Corrupted . | . . . . . . Allies Melted . | . . . . . . Intel | -11 -10 -10 -9 -9 -9 ------- Run | Yrd Mat Min Mat Sto Gar Robot Analysis Total . | . . . . . . Derelict Logs Recovered 2 | . . 2 . . . Drone Launches . | . . . . . . Drone Recoveries . | . . . . . . Exploration | -11 -10 -10 -9 -9 -9 ------------- Run | Yrd Mat Min Mat Sto Gar Turns Passed 1406 | 62 188 515 37 346 258 Spaces Moved 995 | 49 135 411 30 235 135 Core 37 | 12 . 23 . . 2 Treads . | . . . . . . Legs 173 | 37 42 . . . 94 Wheels 785 | . 93 388 30 235 39 Hover . | . . . . . . Flight . | . . . . . . Fastest Speed 50 | 50 95 95 95 95 50 Average Speed 111 | 105 108 111 95 110 124 Slowest Speed 400 | 120 190 400 95 125 350 Overloaded Moves . | . . . . . . Propulsion Burnouts . | . . . . . . Robots Hopped . | . . . . . . Cave-ins Triggered . | . . . . . . Exploration Rate (%) 28 | 3 19 75 4 40 32 Regions Visited 5 Branch Regions 2 Pre-discovered Areas 2 | . . 2 . . . Known Exits Taken 1 | . . . . 1 . Unknown Exits Taken 4 | 1 1 1 1 . . Scrap Searched 1 | . . 1 . . . Spaces Dug . | . . . . . . Terrain Destroyed 177 | . . . . 96 81 Melee . | . . . . . . Projectile . | . . . . . . AOE 177 | . . . . 96 81 Terrain Rammed . | . . . . . . Walls Destroyed . | . . . . . . Machines Disabled . | . . . . . . Actions | -11 -10 -10 -9 -9 -9 --------- Run | Yrd Mat Min Mat Sto Gar Total 1158 | 56 157 435 37 282 191 Wait 30 | . 3 4 . 9 14 Move 990 | 48 134 410 29 234 135 Hop . | . . . . . . Pick Up 21 | 2 4 1 4 7 3 Fast Attach 21 | 6 3 2 1 3 6 Attach 11 | . . 2 3 . 6 Detach 3 | . 2 . . 1 . Swap 5 | . 1 . . 2 2 Drop 7 | . 1 . . 5 1 Fire 63 | . 9 16 . 21 17 Melee 2 | . . . . . 2 Ram . | . . . . . . Kick . | . . . . . . Crush . | . . . . . . Escape Stasis 5 | . . . . . 5 Rewire . | . . . . . . Trap . | . . . . . . Miscellaneous . | . . . . . . Route ------- -11/Scrapyard -10/Materials -10/Mines (discovered 2 exits: [*Mat x2]) -9/Materials -9/Storage -9/Garrison History --------- Turn | Location | Event 13 | -11/Scrapyard | Discovered new exit (range 14) 63 | -11/Scrapyard | Entered Materials 244 | -10/Materials | Discovered new exit (range 7) 251 | -10/Materials | Entered Mines 251 | -10/Mines | Discovered new exit (range 5) 287 | -10/Mines | Learned location of Zion (-6) 300 | -10/Mines | Build established: Mutant 346 | -10/Mines | Discovered new exit (range 6) 442 | -10/Mines | Assembled infested the area 445 | -10/Mines | Found a damaged Exp. Sensor Array with a note attached 447 | -10/Mines | Found Prototype Device 492 | -10/Mines | Core integrity fell below 50% 503 | -10/Mines | Core integrity fell below 20% 527 | -10/Mines | Lost 6 parts (1p2n1u2w) 573 | -10/Mines | Learned location of Storage (-9) 766 | -10/Mines | Entered Materials 766 | -9/Materials | Evolved 2 slots: Propulsion x2 769 | -9/Materials | Discovered new exit (range 9) 803 | -9/Materials | Entered Storage 874 | -9/Storage | Garrison activated, responded to threat 941 | -9/Storage | Met 01-MTF 1147 | -9/Storage | Identified exit to Garrison 1149 | -9/Storage | Entered Garrison 1149 | -9/Garrison | Accompanied by 1 ally (01-MTF) 1154 | -9/Garrison | 01-MTF left 1225 | -9/Garrison | Triggered checkpoint 1277 | -9/Garrison | Lost 5 parts (1p2n2w) 1311 | -9/Garrison | Triggered checkpoint 1347 | -9/Garrison | Spotted B-75 Beast 1374 | -9/Garrison | Spotted B-75 Beast 1383 | -9/Garrison | Core integrity fell below 50% 1402 | -9/Garrison | Core integrity fell below 20% 1407 | -9/Garrison | Destroyed by B-75 Beast with Magnetic Acceleration Cannon Last Messages --------------- 01379_ Aluminum Leg destroyed. 01379_ Rocket Launcher destroyed. 01385_ Imp. Aluminum Leg destroyed. 01388_ System corrupted: Imp. Ion Engine rejected. 01388_ Acquired Imp. Ion Engine. 01391_ Triggered Stasis Trap. 01391_ A bubble of rippling energy engulfs the area. 01391_ Field strength at 85. 01393_ Field strength at 70. 01394_ Field strength at 55. 01395_ Field strength at 34. 01396_ Field strength at 19. 01397_ Field strength at 4. 01397_ Stasis field depleted. 01397_ Aluminum Leg destroyed. 01397_ Imp. Ion Engine destroyed. 01397_ Knocked back. 01402_ Dropped Lrg. Storage Unit. 01403_ Acquired Katana. 01403_ B-75 Beast springs to life. Map ----- +----------------------------------------------------+ | | | | | | | | | | | ?????????????????????????????????????????????????? | | ?????????????????????????????????????????????????? | | ?????????????????????????????????????????????????? | | ?????????????????????????????????????????????????? | | ?????????????????????????????????????????????????? | | ?????????????????????????????????????????????????? | | ?????????????????????????????????????????????????? | | ?????????????????????????????????????????????????? | | ?????????????????????????????????????????????????? | | ?????????????????????????????????????????????????? | | ?????????????????????###############?????????????? | | ??????????????????#### #?????????????? | | ??????????????????# # #?????????????? | | ??????????????????# #?????????????? | | ??????????????????# #?????????????? | | ??????????????????# #?????????????? | | ??????????????????# ; #?????????????? | | ??????????????????# BB % #?????????????? | | ??????????????????# % BB #?????????????? | | ??????????????????# # [!*BB #?????????????? | | ??????????????????##?#%!!@BB #?????????????? | | ?????????????????????###*[#####++###?????????????? | | ????????????????????## ##?# #???????????????? | | ????????????????????# #?# #???????????????? | | ????????????????????# # ##?# #???????????????? | | ????????????????????# #??# #???????????????? | | ???????????????????? #??# #???????????????? | | ???????????????????#### #??# #???????????????? | | ?????????????????????### #### #######?????????? | | ???????????????????### % ^^ #?????????? | | ???????????????????# # ^ #?????????? | | ???????????????????# ##############?????????? | | ??????????????????## [ ## #?????????????????????? | | ??????????????????# * ##????????????????????? | | ????????????????### # #????????????????????? | | ???????????????## ###????????????????????? | | ???????????????# #! #####+###??????????????? | | ???????????????## % ???????????? | | ????????????????# [* #####+#????????????????? | | ???????????# % ###??????????????????????? | | ???????????# ##### ## #????????????????????????? | | ???????????#???# ?# #????????????????????????? | | ?????????####### ## ##############???????????? | | ???????? ?????????? | | ???????? ?????????? | +----------------------------------------------------+ Best States ------------- Heat Dissipation 28 Energy Generation 12 Energy Capacity 265 Matter Stores 300 Matter Capacity 300 Sight Range 16 Terrain Scan Range 16 Terrain Scan Density 10 Evasion (%) 55 Item Schematics ----------------- None Robot Schematics ------------------ None Fabricated ------------ Nothing Alien Tech Used ----------------- None Achievements -------------- None Challenges ------------ None Game ------ Seed OpticalGlidesysMatter Manual? 0 Play Time 00:14:01 Cumulative 178.0 hours Start 2024.06.15 @ 15:39:02 End 2024.06.15 @ 15:50:46 Sessions 1 Manual Loads 0 Difficulty Rogue Special Mode None Game No. 351 Rogue 351 Adventurer 0 Explorer 0 Win Type - Total 0 Types 0/0/0/0/0/0/0/0/0 Lore% 48 Gallery% 66 Achievement% 46 Wizard Run 0 Options --------- Layout 0 ASCII 0 Keyboard 1 Movement Numpad Keybinds 0 Fullscreen 2 Font 18/X11 Map View 76x50 Zoom Use 0% Tactical HUD 1 Map Filters NONE Filters NONE Steam 1 RUN: 14092570-1daa-41e2-a409-4cdbff0f1e95